fUST/lending_fUST_20241003
["ID","MTS","AMOUNT","RATE_DAILY","PERIOD"]
[339732964,1727916646385,-500.0,0.00013673,2]
[339732965,1727916646395,-500.0,0.00013673,2]
[339732966,1727916646404,-974.63286723,0.00013678,2]
[339732967,1727916646414,-1133.73657755,0.00013678,2]
[339732968,1727916646424,-62939.6729969,0.00013678,2]
[339732969,1727916646433,-3726.54809175,0.00013678,2]
[339732970,1727916646443,-526.35825713,0.00013687,2]
[339732971,1727916646452,-151.0,0.00013688,2]
[339732972,1727916646463,-218.275807,0.00013688,2]
[339732973,1727916646475,-151.0,0.00013688,2]
[339732974,1727916646485,-151.0,0.00013688,2]
[339732975,1727916646495,-151.0,0.00013688,2]
[339732976,1727916646507,-151.0,0.00013688,2]
[339732977,1727916646517,-151.0,0.00013688,2]
[339732978,1727916646527,-151.0,0.00013688,2]
[339732979,1727916646537,-151.0,0.00013688,2]
[339732980,1727916646547,-151.0,0.00013688,2]
[339732981,1727916646559,-151.0,0.00013688,2]
[339732982,1727916646570,-151.0,0.00013688,2]
[339732983,1727916646580,-292.864412,0.00013688,2]
[339732984,1727916646590,-151.0,0.00013688,2]
[339732985,1727916646600,-151.0,0.00013688,2]
[339732986,1727916646610,-151.0,0.00013688,2]
[339732987,1727916646622,-83.15000443,0.00013688,2]
[339732988,1727916646637,-67.84999557,0.00013688,2]
[339732989,1727916646647,-622.949591,0.00013688,2]
[339732990,1727916646658,-622.949591,0.00013688,2]
[339732991,1727916646668,-151.0,0.00013688,2]
[339732992,1727916646678,-151.0,0.00013688,2]
[339732993,1727916646689,-622.949591,0.00013688,2]
[339732994,1727916646698,-622.949591,0.00013688,2]
[339732995,1727916646708,-151.0,0.00013688,2]
[339732996,1727916646718,-151.0,0.00013688,2]
[339732997,1727916646729,-257.434089,0.00013688,2]
[339732998,1727916646739,-151.0,0.00013688,2]
[339732999,1727916646756,-151.0,0.00013688,2]
[339733000,1727916646771,-151.0,0.00013688,2]
[339733001,1727916646782,-151.0,0.00013688,2]
[339733002,1727916646795,-151.0,0.00013688,2]
[339733003,1727916646806,-151.0,0.00013688,2]
[339733004,1727916646817,-301.770906,0.00013688,2]
[339733005,1727916646831,-301.770906,0.00013688,2]
[339733006,1727916646843,-301.770906,0.00013688,2]
[339733007,1727916646853,-301.770906,0.00013688,2]
[339733008,1727916646864,-225.038256,0.00013688,2]
[339733009,1727916646874,-225.038256,0.00013688,2]
[339733010,1727916646884,-470.04964,0.00013688,2]
[339733011,1727916646893,-470.04964,0.00013688,2]
[339733012,1727916646903,-470.04964,0.00013688,2]
[339733013,1727916646915,-470.04964,0.00013688,2]
[339733014,1727916646926,-225.038256,0.00013688,2]
[339733015,1727916646937,-225.038256,0.00013688,2]
[339733016,1727916646948,-151.0,0.00013688,2]
[339733017,1727916646959,-179.066731,0.00013688,2]
[339733018,1727916646968,-179.066731,0.00013688,2]
[339733019,1727916646981,-179.066731,0.00013688,2]
[339733020,1727916646992,-179.066731,0.00013688,2]
[339733021,1727916647002,-151.0,0.00013688,2]
[339733022,1727916647014,-1708.390192,0.00013688,2]
[339733023,1727916647025,-181.485156,0.00013688,2]
[339733024,1727916647034,-181.485156,0.00013688,2]
[339733025,1727916647044,-1226.98978237,0.00013688,2]
[339733027,1727917460638,-347.06571,0.000136,4]
[339733028,1727917539141,-196.81447113,0.00012476,2]
[339733029,1727917539165,-186.66875275,0.00012483,2]
[339733030,1727917636092,-1155.24547511,0.00012483,2]
[339733031,1727917756101,-500.0,0.00011164,2]
[339733033,1727917773293,-1658.08577214,0.00012483,2]
[339733034,1727917829136,231.73642786,0.00011164,2]
[339733035,1727917829157,268.26357214,0.00011164,2]
[339733047,1727917832481,-167.705538,0.00012576,2]
[339733049,1727917832494,-167.705538,0.00012649,2]
[339733051,1727917832505,-167.705538,0.00012722,2]
[339733053,1727917832517,-167.705538,0.00012795,2]
[339733056,1727917832527,-167.705538,0.00012868,2]
[339733058,1727917832537,-177.55103546,0.000129,2]
[339733060,1727917832550,-31.90785694,0.000129,2]
[339733062,1727917832562,-167.705538,0.0001294,2]
[339733064,1727917832572,-167.705538,0.00013013,2]
[339733067,1727917832585,-167.705538,0.00013086,2]
[339733069,1727917832596,-167.705538,0.00013159,2]
[339733071,1727917832607,-43.87584674,0.00013232,2]
[339733122,1727917838482,-123.82969126,0.00013232,2]
[339733125,1727917838493,-132.6898467,0.00013287,2]
[339733127,1727917838510,-943.11175658,0.00013287,2]
[339733129,1727917838521,-1444.34576349,0.00013316,2]
[339733132,1727917838533,-2601.29151478,0.00013316,2]
[339733134,1727917838543,-300.0,0.00013341,2]
[339733136,1727917838552,-209.4588924,0.00013342,2]
[339733138,1727917838562,-209.4588924,0.00013342,2]
[339733140,1727917838572,-209.4588924,0.00013342,2]
[339733142,1727917838581,-209.4588924,0.00013342,2]
[339733144,1727917838591,-209.4588924,0.00013342,2]
[339733146,1727917838601,-600.0,0.00013384,2]
[339733148,1727917838610,-600.0,0.00013396,2]
[339733150,1727917838620,-970.66396886,0.00013524,2]
[339733152,1727917838629,-182.567009,0.00013568,2]
[339733154,1727917838638,-450.73877886,0.00013598,2]
[339733156,1727917838647,-465.00125474,0.00013626,2]
[339733158,1727917838658,-46866.32229,0.00013667,2]
[339733160,1727917838667,-16438.8310678,0.00013668,2]
[339733162,1727917838677,-42426.3449064,0.00013668,2]
[339733164,1727917838686,-500.0,0.00013673,2]
[339733166,1727917838696,-500.0,0.00013673,2]
[339733168,1727917838706,-500.0,0.00013673,2]
[339733170,1727917838715,-615.66022157,0.00013673,2]
[339733172,1727917838724,-500.0,0.00013673,2]
[339733174,1727917838734,-500.92319243,0.00013673,2]
[339733176,1727917838744,-500.0,0.00013673,2]
[339733178,1727917838755,-500.0,0.00013673,2]
[339733180,1727917838768,-500.0,0.00013673,2]
[339733181,1727917838779,-500.0,0.00013673,2]
[339733183,1727917838790,-500.0,0.00013673,2]
[339733184,1727917838800,-500.0,0.00013673,2]
[339733185,1727917838809,-625.78499981,0.00013673,2]
[339733186,1727917838820,-328.74179708,0.00013673,2]
[339733187,1727917838830,-500.0,0.00013673,2]
[339733188,1727917838840,-500.0,0.00013673,2]
[339733189,1727917838851,-500.0,0.00013673,2]
[339733190,1727917838860,-566.86828877,0.00013677,2]
[339733191,1727917838870,-15416.14857452,0.00013678,2]
[339733192,1727917838880,-16438.8310678,0.00013678,2]
[339733193,1727917838891,-42426.3449064,0.00013678,2]
[339733194,1727917838900,-16438.8310678,0.00013678,2]
[339733195,1727917838911,-42426.3449064,0.00013678,2]
[339733196,1727917838921,-151.0,0.00013678,2]
[339733197,1727917838932,-151.0,0.00013678,2]
[339733198,1727917838942,-151.0,0.00013678,2]
[339733199,1727917838954,-151.0,0.00013678,2]
[339733200,1727917838964,-151.0,0.00013678,2]
[339733201,1727917838974,-163.336641,0.00013678,2]
[339733202,1727917838983,-163.336641,0.00013678,2]
[339733203,1727917838994,-180.030605,0.00013678,2]
[339733204,1727917839005,-180.030605,0.00013678,2]
[339733205,1727917839017,-241.416725,0.00013678,2]
[339733206,1727917839026,-241.416725,0.00013678,2]
[339733207,1727917839036,-3222.140344,0.00013678,2]
[339733208,1727917839046,-3222.140344,0.00013678,2]
[339733209,1727917839057,-151.0,0.00013678,2]
[339733210,1727917839067,-151.0,0.00013678,2]
[339733211,1727917839077,-498.359673,0.00013678,2]
[339733212,1727917839087,-498.359673,0.00013678,2]
[339733213,1727917839099,-151.0,0.00013678,2]
[339733214,1727917839110,-151.0,0.00013678,2]
[339733215,1727917839120,-151.0,0.00013678,2]
[339733216,1727917839130,-151.0,0.00013678,2]
[339733217,1727917839141,-151.0,0.00013678,2]
[339733218,1727917839152,-212.050848,0.00013678,2]
[339733219,1727917839163,-151.0,0.00013678,2]
[339733220,1727917839175,-151.0,0.00013678,2]
[339733221,1727917839185,-151.0,0.00013678,2]
[339733222,1727917839196,-151.0,0.00013678,2]
[339733223,1727917839207,-151.0,0.00013678,2]
[339733224,1727917839221,-151.0,0.00013678,2]
[339733225,1727917839231,-151.829702,0.00013678,2]
[339733226,1727917839242,-151.0,0.00013678,2]
[339733227,1727917839253,-183.344915,0.00013678,2]
[339733228,1727917839263,-151.0,0.00013678,2]
[339733229,1727917839273,-151.0,0.00013678,2]
[339733230,1727917839284,-151.0,0.00013678,2]
[339733231,1727917839294,-151.0,0.00013678,2]
[339733232,1727917839303,-151.0,0.00013678,2]
[339733233,1727917839315,-151.0,0.00013678,2]
[339733234,1727917839326,-151.0,0.00013678,2]
[339733235,1727917839335,-151.0,0.00013678,2]
[339733236,1727917839345,-151.0,0.00013678,2]
[339733237,1727917839355,-32877.6621356,0.00013678,2]
[339733238,1727917839366,-84852.6898129,0.00013678,2]
[339733239,1727917839375,-150.01,0.00013687,2]
[339733240,1727917839387,-1669.79047213,0.00013687,2]
[339733241,1727917839396,-151.0,0.00013688,2]
[339733242,1727917839406,-151.0,0.00013688,2]
[339733243,1727917839415,-271.9694,0.00013688,2]
[339733244,1727917839425,-271.9694,0.00013688,2]
[339733245,1727917839434,-151.0,0.00013688,2]
[339733246,1727917839444,-151.0,0.00013688,2]
[339733247,1727917839455,-151.0,0.00013688,2]
[339733248,1727917839465,-151.0,0.00013688,2]
[339733249,1727917839477,-260.177083,0.00013688,2]
[339733250,1727917839487,-260.177083,0.00013688,2]
[339733251,1727917839497,-151.0,0.00013688,2]
[339733252,1727917839508,-151.0,0.00013688,2]
[339733253,1727917839527,-532.722925,0.00013688,2]
[339733254,1727917839538,-532.722925,0.00013688,2]
[339733255,1727917839548,-532.722925,0.00013688,2]
[339733256,1727917839559,-532.722925,0.00013688,2]
[339733257,1727917839570,-532.722925,0.00013688,2]
[339733258,1727917839579,-532.722925,0.00013688,2]
[339733259,1727917839590,-151.0,0.00013688,2]
[339733260,1727917839600,-151.0,0.00013688,2]
[339733261,1727917839610,-151.0,0.00013688,2]
[339733262,1727917839621,-151.0,0.00013688,2]
[339733263,1727917839630,-151.0,0.00013688,2]
[339733264,1727917839641,-151.0,0.00013688,2]
[339733265,1727917839653,-481.939726,0.00013688,2]
[339733266,1727917839662,-151.0,0.00013688,2]
[339733267,1727917839672,-151.0,0.00013688,2]
[339733268,1727917839683,-151.0,0.00013688,2]
[339733269,1727917839693,-151.0,0.00013688,2]
[339733270,1727917839704,-151.0,0.00013688,2]
[339733271,1727917839713,-240.398359,0.00013688,2]
[339733272,1727917839723,-151.0,0.00013688,2]
[339733273,1727917839733,-151.0,0.00013688,2]
[339733274,1727917839743,-151.0,0.00013688,2]
[339733275,1727917839752,-151.0,0.00013688,2]
[339733276,1727917839763,-151.0,0.00013688,2]
[339733277,1727917839777,-151.0,0.00013688,2]
[339733278,1727917839786,-163.336641,0.00013688,2]
[339733279,1727917839796,-163.336641,0.00013688,2]
[339733280,1727917839806,-163.336641,0.00013688,2]
[339733284,1727917840005,-163.336641,0.00013688,2]
[339733285,1727917840022,-163.336641,0.00013688,2]
[339733286,1727917840032,-163.336641,0.00013688,2]
[339733287,1727917840041,-180.030605,0.00013688,2]
[339733288,1727917840050,-151.0,0.00013688,2]
[339733289,1727917840060,-180.030605,0.00013688,2]
[339733291,1727917840069,-180.030605,0.00013688,2]
[339733292,1727917840079,-180.030605,0.00013688,2]
[339733293,1727917840089,-180.030605,0.00013688,2]
[339733294,1727917840098,-180.030605,0.00013688,2]
[339733295,1727917840108,-241.416725,0.00013688,2]
[339733296,1727917840118,-241.416725,0.00013688,2]
[339733298,1727917840128,-241.416725,0.00013688,2]
[339733299,1727917840138,-241.416725,0.00013688,2]
[339733300,1727917840147,-241.416725,0.00013688,2]
[339733301,1727917840158,-241.416725,0.00013688,2]
[339733302,1727917840168,-151.0,0.00013688,2]
[339733303,1727917840177,-151.0,0.00013688,2]
[339733304,1727917840187,-151.0,0.00013688,2]
[339733305,1727917840197,-151.0,0.00013688,2]
[339733306,1727917840206,-151.0,0.00013688,2]
[339733307,1727917840219,-151.0,0.00013688,2]
[339733308,1727917840229,-3222.140344,0.00013688,2]
[339733309,1727917840239,-3222.140344,0.00013688,2]
[339733310,1727917840249,-3222.140344,0.00013688,2]
[339733311,1727917840261,-527.339573,0.00013688,2]
[339733312,1727917840276,-527.339573,0.00013688,2]
[339733313,1727917840288,-527.339573,0.00013688,2]
[339733315,1727917840298,-3222.140344,0.00013688,2]
[339733316,1727917840308,-3222.140344,0.00013688,2]
[339733317,1727917840318,-3222.140344,0.00013688,2]
[339733318,1727917840327,-527.339573,0.00013688,2]
[339733319,1727917840337,-527.339573,0.00013688,2]
[339733320,1727917840346,-527.339573,0.00013688,2]
[339733321,1727917840356,-151.0,0.00013688,2]
[339733322,1727917840367,-498.359673,0.00013688,2]
[339733323,1727917840378,-498.359673,0.00013688,2]
[339733324,1727917840389,-498.359673,0.00013688,2]
[339733325,1727917840399,-498.359673,0.00013688,2]
[339733326,1727917840410,-498.359673,0.00013688,2]
[339733327,1727917840421,-498.359673,0.00013688,2]
[339733328,1727917840430,-498.359673,0.00013688,2]
[339733329,1727917840439,-498.359673,0.00013688,2]
[339733330,1727917840449,-151.0,0.00013688,2]
[339733331,1727917840460,-151.0,0.00013688,2]
[339733332,1727917840471,-151.0,0.00013688,2]
[339733333,1727917840481,-151.0,0.00013688,2]
[339733334,1727917840492,-1561.621193,0.00013688,2]
[339733335,1727917840502,-1561.621193,0.00013688,2]
[339733336,1727917840512,-1561.621193,0.00013688,2]
[339733337,1727917840524,-1561.621193,0.00013688,2]
[339733338,1727917840534,-1561.621193,0.00013688,2]
[339733339,1727917840545,-1561.621193,0.00013688,2]
[339733340,1727917840555,-1561.621193,0.00013688,2]
[339733341,1727917840565,-1561.621193,0.00013688,2]
[339733342,1727917840576,-1561.621193,0.00013688,2]
[339733343,1727917840586,-1561.621193,0.00013688,2]
[339733344,1727917840595,-151.0,0.00013688,2]
[339733345,1727917840604,-151.0,0.00013688,2]
[339733346,1727917840615,-151.0,0.00013688,2]
[339733347,1727917840625,-151.0,0.00013688,2]
[339733348,1727917840636,-151.0,0.00013688,2]
[339733349,1727917840645,-151.0,0.00013688,2]
[339733350,1727917840656,-151.0,0.00013688,2]
[339733351,1727917840666,-151.0,0.00013688,2]
[339733352,1727917840676,-151.0,0.00013688,2]
[339733353,1727917840686,-151.0,0.00013688,2]
[339733354,1727917840697,-151.0,0.00013688,2]
[339733355,1727917840708,-151.0,0.00013688,2]
[339733356,1727917840717,-151.0,0.00013688,2]
[339733357,1727917840730,-151.0,0.00013688,2]
[339733358,1727917840742,-151.0,0.00013688,2]
[339733359,1727917840751,-151.0,0.00013688,2]
[339733360,1727917840762,-151.0,0.00013688,2]
[339733361,1727917840774,-151.0,0.00013688,2]
[339733362,1727917840785,-151.0,0.00013688,2]
[339733363,1727917840795,-151.0,0.00013688,2]
[339733364,1727917840805,-151.0,0.00013688,2]
[339733365,1727917840815,-151.0,0.00013688,2]
[339733366,1727917840826,-151.0,0.00013688,2]
[339733367,1727917840836,-151.0,0.00013688,2]
[339733368,1727917840846,-151.0,0.00013688,2]
[339733369,1727917840856,-151.0,0.00013688,2]
[339733370,1727917840866,-151.0,0.00013688,2]
[339733371,1727917840876,-151.0,0.00013688,2]
[339733372,1727917840886,-278.184499,0.00013688,2]
[339733373,1727917840896,-151.0,0.00013688,2]
[339733374,1727917840907,-151.0,0.00013688,2]
[339733375,1727917840919,-151.0,0.00013688,2]
[339733376,1727917840930,-151.0,0.00013688,2]
[339733377,1727917840941,-151.0,0.00013688,2]
[339733378,1727917840951,-151.0,0.00013688,2]
[339733379,1727917840962,-151.0,0.00013688,2]
[339733380,1727917840974,-151.0,0.00013688,2]
[339733381,1727917840984,-151.0,0.00013688,2]
[339733382,1727917840994,-151.0,0.00013688,2]
[339733383,1727917841004,-151.0,0.00013688,2]
[339733384,1727917841014,-153.514676,0.00013688,2]
[339733385,1727917841024,-151.0,0.00013688,2]
[339733386,1727917841033,-151.0,0.00013688,2]
[339733387,1727917841043,-151.0,0.00013688,2]
[339733388,1727917841053,-281.93552,0.00013688,2]
[339733389,1727917841064,-102135.92022184,0.00013688,2]
[339733390,1727917841586,-151.0,0.00013678,2]
[339733391,1727917841596,-151.0,0.00013678,2]
[339733392,1727917841606,-151.0,0.00013688,2]
[339733393,1727917841616,-151.0,0.00013688,2]
[339733394,1727917841626,-151.0,0.00013688,2]
[339733395,1727917841636,-151.0,0.00013688,2]
[339733396,1727917841646,-29374.72832016,0.00013688,2]
[339733397,1727917841656,-68959.77206894,0.00013688,2]
[339733421,1727917846645,-151.0,0.00013678,2]
[339733422,1727917846656,-271.127602,0.00013678,2]
[339733423,1727917846665,-321.95611397,0.00013688,2]
[339733424,1727917897747,483.14162786,0.00012213,2]
[339733425,1727917897772,198.56368784,0.00012213,2]
[339733426,1727917897794,224.42682265,0.00012213,2]
[339733427,1727917897824,2093.86786165,0.00012213,2]
[339733446,1727917989186,511.92,0.00021,60]
[339733447,1727917989709,500.0,0.00021,60]
[339733448,1727917989945,500.0,0.00021,60]
[339733449,1727917990279,737.13,0.00021,60]
[339733450,1727917990309,500.0,0.00021,60]
[339733451,1727917991540,642.77,0.00021,60]
[339733452,1727917991840,500.0,0.00021,60]
[339733453,1727917993390,500.0,0.00021,60]
[339733454,1727917993783,678.67,0.00021,60]
[339733455,1727917993984,500.0,0.00021,60]
[339733456,1727917996746,500.0,0.00021,60]
[339733457,1727917997572,500.0,0.00021,60]
[339733458,1727917999335,500.0,0.00021,60]
[339733459,1727918002366,500.0,0.00021,60]
[339733460,1727918003255,512.83208038,0.00021,60]
[339733461,1727918003870,789.26,0.00021,60]
[339733462,1727918005168,500.0,0.00021,60]
[339733463,1727918005438,500.0,0.00021,60]
[339733464,1727918005824,1040.37,0.00021,60]
[339733465,1727918005941,500.0,0.00021,60]
[339733466,1727918006069,736.56,0.00021,60]
[339733467,1727918006276,500.0,0.00021,60]
[339733468,1727918008596,500.0,0.00021,60]
[339733469,1727918009402,500.0,0.00021,60]
[339733470,1727918010521,500.0,0.00021,60]
[339733471,1727918011064,500.0,0.00021,60]
[339733472,1727918011450,500.0,0.00021,60]
[339733473,1727918012222,796.27,0.00021,60]
[339733474,1727918013293,500.0,0.00021,60]
[339733475,1727918013572,500.0,0.00021,60]
[339733476,1727918015433,500.0,0.00021,60]
[339733477,1727918015995,500.0,0.00021,60]
[339733478,1727918017125,500.0,0.00021,60]
[339733479,1727918018500,527.66,0.00021,60]
[339733480,1727918018820,755.04,0.00021,60]
[339733481,1727918019820,806.23,0.00021,60]
[339733482,1727918020095,1494.05,0.00021,60]
[339733483,1727918021530,500.0,0.00021,60]
[339733484,1727918022194,500.0,0.00021,60]
[339733485,1727918025390,500.0,0.00021,60]
[339733486,1727918025601,500.0,0.00021,60]
[339733487,1727918027358,500.0,0.00021,60]
[339733488,1727918028187,500.0,0.00021,60]
[339733489,1727918028834,500.0,0.00021,60]
[339733490,1727918028978,500.0,0.00021,60]
[339733491,1727918029132,2229.18,0.00021,60]
[339733492,1727918031297,500.0,0.00021,60]
[339733493,1727918034953,208.40245618,0.00021,60]
[339733494,1727918034988,795.17,0.00021,60]
[339733495,1727918035880,515.28,0.00021,60]
[339733496,1727918036841,500.0,0.00021,60]
[339733497,1727918037179,500.0,0.00021,60]
[339733498,1727918037467,1612.9,0.00021,60]
[339733499,1727918037864,545.15,0.00021,60]
[339733500,1727918039580,205.92872841,0.00021,60]
[339733501,1727918040440,500.0,0.00021,60]
[339733502,1727918042753,542.84,0.00021,60]
[339733503,1727918043782,500.0,0.00021,60]
[339733504,1727918043830,500.0,0.00021,60]
[339733505,1727918044753,500.0,0.00021,60]
[339733506,1727918046538,511.56806624,0.00021,60]
[339733507,1727918046668,500.0,0.00021,60]
[339733508,1727918046706,526.82,0.00021,60]
[339733509,1727918048030,500.0,0.00021,60]
[339733510,1727918048827,540.4182777,0.00021,60]
[339733511,1727918049494,500.0,0.00021,60]
[339733512,1727918050448,1042.84,0.00021,60]
[339733513,1727918050799,515.77,0.00021,60]
[339733514,1727918050845,500.0,0.00021,60]
[339733517,1727918051902,301.19936528,0.00021,60]
[339733518,1727918051935,528.44381689,0.00021,60]
[339733520,1727918052380,542.26,0.00021,60]
[339733523,1727918052817,500.0,0.00021,60]
[339733534,1727918053841,500.0,0.00021,60]
[339733614,1727918057847,500.0,0.00021,60]
[339733618,1727918057909,500.0,0.00021,60]
[339733659,1727918059428,500.0,0.00021,60]
[339733700,1727918061106,500.0,0.00021,60]
[339733702,1727918061169,500.0,0.00021,60]
[339733708,1727918061362,500.0,0.00021,60]
[339733717,1727918061907,529.97363488,0.00021,60]
[339733725,1727918062350,728.52,0.00021,60]
[339733762,1727918063611,500.0,0.00021,60]
[339733796,1727918066139,722.6,0.00021,60]
[339733841,1727918067898,376.50267829,0.00021,60]
[339733869,1727918069019,500.0,0.00021,60]
[339733872,1727918069060,500.0,0.00021,60]
[339733875,1727918069107,500.0,0.00021,60]
[339733919,1727918070834,500.0,0.00021,60]
[339733921,1727918070874,500.0,0.00021,60]
[339733935,1727918072151,500.0,0.00021,60]
[339733948,1727918072506,500.0,0.00021,60]
[339733991,1727918074324,500.0,0.00021,60]
[339733995,1727918074747,500.0,0.00021,60]
[339734001,1727918074899,500.0,0.00021,60]
[339734056,1727918077417,500.0,0.00021,60]
[339734062,1727918077586,500.0,0.00021,60]
[339734097,1727918078869,500.0,0.00021,60]
[339734133,1727918080324,152.24742027,0.00021,60]
[339734152,1727918081359,500.0,0.00021,60]
[339734157,1727918081592,1187.15,0.00021,60]
[339734163,1727918081748,346.23576702,0.00021,60]
[339734180,1727918082469,1789.01,0.00021,60]
[339734182,1727918082622,500.0,0.00021,60]
[339734197,1727918083330,3185.49,0.00021,60]
[339734199,1727918083362,500.0,0.00021,60]
[339734208,1727918084544,502.98,0.00021,60]
[339734217,1727918085479,1434.43,0.00021,60]
[339734218,1727918085515,500.0,0.00021,60]
[339734221,1727918086010,500.0,0.00021,60]
[339734234,1727918087322,500.0,0.00021,60]
[339734246,1727918088028,3036.01,0.00021,60]
[339734277,1727918089760,500.0,0.00021,60]
[339734312,1727918091329,500.0,0.00021,60]
[339734315,1727918091385,500.0,0.00021,60]
[339734347,1727918092919,569.7,0.00021,60]
[339734349,1727918093015,500.0,0.00021,60]
[339734351,1727918093054,500.0,0.00021,60]
[339734365,1727918093742,500.0,0.00021,60]
[339734370,1727918093897,500.0,0.00021,60]
[339734409,1727918095829,500.0,0.00021,60]
[339734432,1727918097466,500.0,0.00021,60]
[339734438,1727918097653,986.76,0.00021,60]
[339734444,1727918097914,500.0,0.00021,60]
[339734465,1727918099432,500.0,0.00021,60]
[339734466,1727918099475,500.0,0.00021,60]
[339734470,1727918099899,500.0,0.00021,60]
[339734484,1727918100549,500.0,0.00021,60]
[339734501,1727918101808,500.0,0.00021,60]
[339734518,1727918102745,1279.22,0.00021,60]
[339734536,1727918103820,500.0,0.00021,60]
[339734537,1727918103887,500.0,0.00021,60]
[339734569,1727918105724,783.62,0.00021,60]
[339734600,1727918107230,500.0,0.00021,60]
[339734602,1727918107416,500.0,0.00021,60]
[339734611,1727918108375,741.23,0.00021,60]
[339734670,1727918110917,2000.96,0.00021,60]
[339734676,1727918111115,500.0,0.00021,60]
[339734682,1727918111318,500.0,0.00021,60]
[339734702,1727918112528,500.0,0.00021,60]
[339734711,1727918112937,500.0,0.00021,60]
[339734727,1727918113578,1327.66,0.00021,60]
[339734746,1727918114518,500.0,0.00021,60]
[339734786,1727918117082,834.08,0.00021,60]
[339734797,1727918117606,500.0,0.00021,60]
[339734808,1727918118418,807.67,0.00021,60]
[339734814,1727918118842,500.0,0.00021,60]
[339734817,1727918119203,523.28,0.00021,60]
[339734837,1727918120186,500.0,0.00021,60]
[339734845,1727918120667,500.0,0.00021,60]
[339734847,1727918120723,1061.13,0.00021,60]
[339734852,1727918121174,500.0,0.00021,60]
[339734886,1727918123223,500.0,0.00021,60]
[339734887,1727918123288,697.2,0.00021,60]
[339734895,1727918123825,500.0,0.00021,60]
[339734904,1727918124491,500.0,0.00021,60]
[339734907,1727918124696,623.44,0.00021,60]
[339734913,1727918125419,877.32,0.00021,60]
[339734914,1727918125473,672.59,0.00021,60]
[339734916,1727918125720,500.0,0.00021,60]
[339734919,1727918125800,500.0,0.00021,60]
[339734930,1727918126499,500.0,0.00021,60]
[339734964,1727918128581,500.0,0.00021,60]
[339734971,1727918129334,500.0,0.00021,60]
[339735011,1727918131270,500.0,0.00021,60]
[339735012,1727918131320,500.0,0.00021,60]
[339735021,1727918131870,406.23049792,0.00021,60]
[339735044,1727918132821,526.63,0.00021,60]
[339735048,1727918133078,500.0,0.00021,60]
[339735063,1727918133759,785.12,0.00021,60]
[339735070,1727918134118,500.0,0.00021,60]
[339735074,1727918134222,500.0,0.00021,60]